[Event "Early-Titled-Tuesday-Blitz-August-29-2023"]
[Site "Chess.com"]
[Date "2023.08.29"]
[Round "2"]
[White "Fan_Of_Chucky"]
[Black "Fraler15"]
[Result "1-0"]
[WhiteElo "2482"]
[BlackElo "2234"]
[TimeControl "180+1"]
[EndTime "8:14:55 PDT"]
[Termination "Fan_Of_Chucky won by resignation"]

1. d4 {[%clk 0:03:00.9]} 1... d5 {[%clk 0:02:59.3]} 2. c4 {[%clk 0:03:01.1]}
2... e6 {[%clk 0:02:59.6]} 3. Nf3 {[%clk 0:03:01]} 3... Nf6 {[%clk 0:02:59.8]}
4. g3 {[%clk 0:03:00.1]} 4... Be7 {[%clk 0:02:59]} 5. Bg2 {[%clk 0:03:00.6]}
5... O-O {[%clk 0:02:58.9]} 6. O-O {[%clk 0:03:01.3]} 6... a5 {[%clk 0:02:57.6]}
7. Qc2 {[%clk 0:02:55.8]} 7... Nc6 {[%clk 0:02:42.2]} 8. a3 {[%clk 0:02:52]}
8... Bd7 {[%clk 0:02:29.8]} 9. Nbd2 {[%clk 0:02:48.3]} 9... a4 {[%clk
0:02:29.1]} 10. e4 {[%clk 0:02:44.4]} 10... dxe4 {[%clk 0:02:21.8]} 11. Nxe4
{[%clk 0:02:43.3]} 11... Nxe4 {[%clk 0:02:14.5]} 12. Qxe4 {[%clk 0:02:42.2]}
12... Na5 {[%clk 0:02:15.2]} 13. d5 {[%clk 0:02:29.7]} 13... exd5 {[%clk
0:02:10.5]} 14. cxd5 {[%clk 0:02:30.6]} 14... Bf6 {[%clk 0:02:05.5]} 15. Rb1
{[%clk 0:02:12.6]} 15... Re8 {[%clk 0:02:03]} 16. Qd3 {[%clk 0:02:06]} 16... Nb3
{[%clk 0:01:54.4]} 17. Be3 {[%clk 0:01:26.2]} 17... g6 {[%clk 0:01:53.5]} 18.
Qc4 {[%clk 0:01:21]} 18... Bf5 {[%clk 0:01:50.5]} 19. Rbd1 {[%clk 0:01:18.8]}
19... Bxb2 {[%clk 0:01:49.4]} 20. d6 {[%clk 0:01:15.7]} 20... cxd6 {[%clk
0:01:42.7]} 21. Ng5 {[%clk 0:01:16]} 21... Rxe3 {[%clk 0:01:36.6]} 22. Qxf7+
{[%clk 0:01:12.4]} 1-0

[Event "Early-Titled-Tuesday-Blitz-August-29-2023"]
[Site "Chess.com"]
[Date "2023.08.29"]
[Round "2"]
[White "nihalsarin"]
[Black "Kostya0705"]
[Result "1-0"]
[WhiteElo "3140"]
[BlackElo "2665"]
[TimeControl "180+1"]
[EndTime "8:15:13 PDT"]
[Termination "nihalsarin won by resignation"]

1. b3 {[%clk 0:02:58.1]} 1... e5 {[%clk 0:02:58.2]} 2. Bb2 {[%clk 0:02:59]} 2...
d6 {[%clk 0:02:58.4]} 3. d4 {[%clk 0:02:54.4]} 3... exd4 {[%clk 0:02:57.4]} 4.
Qxd4 {[%clk 0:02:55]} 4... Nf6 {[%clk 0:02:58.1]} 5. Nf3 {[%clk 0:02:55.1]} 5...
Nc6 {[%clk 0:02:58.1]} 6. Qd1 {[%clk 0:02:55.3]} 6... Bf5 {[%clk 0:02:57.6]} 7.
e3 {[%clk 0:02:56.2]} 7... Be7 {[%clk 0:02:57.9]} 8. Bd3 {[%clk 0:02:57]} 8...
Qd7 {[%clk 0:02:55.9]} 9. O-O {[%clk 0:02:57.7]} 9... O-O {[%clk 0:02:55.1]} 10.
Nbd2 {[%clk 0:02:58.4]} 10... h6 {[%clk 0:02:55.3]} 11. h3 {[%clk 0:02:59.1]}
11... Bh7 {[%clk 0:02:54.7]} 12. Qe2 {[%clk 0:02:59.8]} 12... Rfe8 {[%clk
0:02:54.7]} 13. Bxh7+ {[%clk 0:03:00.1]} 13... Kxh7 {[%clk 0:02:54.4]} 14. Rad1
{[%clk 0:03:01]} 14... Qe6 {[%clk 0:02:51.3]} 15. c4 {[%clk 0:03:01.5]} 15...
Ne5 {[%clk 0:02:51]} 16. Nd4 {[%clk 0:03:01.7]} 16... Qd7 {[%clk 0:02:50.4]} 17.
N2f3 {[%clk 0:03:02.3]} 17... Bf8 {[%clk 0:02:44.9]} 18. Nxe5 {[%clk 0:03:02.4]}
18... dxe5 {[%clk 0:02:45.5]} 19. Qc2+ {[%clk 0:03:02.5]} 19... g6 {[%clk
0:02:42.1]} 20. Nf3 {[%clk 0:03:02.9]} 20... Qe6 {[%clk 0:02:31.6]} 21. Bxe5
{[%clk 0:03:03.2]} 21... Bg7 {[%clk 0:02:27.5]} 22. Bxc7 {[%clk 0:03:03.2]}
22... Rac8 {[%clk 0:02:28]} 23. Be5 {[%clk 0:03:03.3]} 23... b5 {[%clk
0:02:28.6]} 24. c5 {[%clk 0:03:03.6]} 24... b4 {[%clk 0:02:26.9]} 25. Rd6 {[%clk
0:03:03.5]} 25... Qe7 {[%clk 0:02:25.6]} 26. Rfd1 {[%clk 0:03:03.7]} 26... Kg8
{[%clk 0:02:13.9]} 27. Bxf6 {[%clk 0:03:03.5]} 27... Bxf6 {[%clk 0:02:14.4]} 28.
Qc4 {[%clk 0:03:04.4]} 28... a5 {[%clk 0:02:12]} 29. c6 {[%clk 0:03:04.7]} 29...
Kg7 {[%clk 0:02:10.6]} 30. Rd7 {[%clk 0:03:05.3]} 30... Qe6 {[%clk 0:02:09.6]}
31. c7 {[%clk 0:03:04.1]} 31... Qxc4 {[%clk 0:02:06.9]} 32. bxc4 {[%clk
0:03:05]} 32... Re6 {[%clk 0:02:06.6]} 33. Nd4 {[%clk 0:03:04.3]} 33... Bxd4
{[%clk 0:02:07.1]} 34. exd4 {[%clk 0:03:04.7]} 34... Rc6 {[%clk 0:02:08]} 35. d5
{[%clk 0:03:02.1]} 35... Ra6 {[%clk 0:00:25.5]} 36. d6 {[%clk 0:03:02.5]} 36...
Raa8 {[%clk 0:00:22.6]} 37. c5 {[%clk 0:03:03]} 37... a4 {[%clk 0:00:22.6]} 38.
Rb1 {[%clk 0:03:03.8]} 38... b3 {[%clk 0:00:19.8]} 39. axb3 {[%clk 0:03:04.7]}
39... a3 {[%clk 0:00:20.6]} 40. b4 {[%clk 0:03:05.5]} 40... a2 {[%clk 0:00:21]}
41. Ra1 {[%clk 0:03:06.1]} 41... Kf6 {[%clk 0:00:19.5]} 42. b5 {[%clk
0:03:06.1]} 42... Ra5 {[%clk 0:00:18.1]} 43. b6 {[%clk 0:03:06.6]} 43... Rb5
{[%clk 0:00:14.1]} 44. Rxa2 {[%clk 0:03:07.1]} 1-0

[Event "Early-Titled-Tuesday-Blitz-August-29-2023"]
[Site "Chess.com"]
[Date "2023.08.29"]
[Round "2"]
[White "Gyulamiryan-koryun"]
[Black "MusicCityMaster"]
[Result "0-1"]
[WhiteElo "2057"]
[BlackElo "2437"]
[TimeControl "180+1"]
[EndTime "8:15:14 PDT"]
[Termination "MusicCityMaster won by resignation"]

1. d4 {[%clk 0:03:00.9]} 1... Nf6 {[%clk 0:02:59.4]} 2. c4 {[%clk 0:03:01.3]}
2... c5 {[%clk 0:02:59.1]} 3. Nf3 {[%clk 0:03:01.3]} 3... cxd4 {[%clk
0:02:58.9]} 4. Nxd4 {[%clk 0:03:01.8]} 4... e5 {[%clk 0:02:59]} 5. Nb5 {[%clk
0:03:00.1]} 5... d5 {[%clk 0:02:59]} 6. cxd5 {[%clk 0:02:59]} 6... Bc5 {[%clk
0:02:59.6]} 7. N5c3 {[%clk 0:02:57.8]} 7... O-O {[%clk 0:02:58.6]} 8. h3 {[%clk
0:02:52.6]} 8... e4 {[%clk 0:02:46.7]} 9. e3 {[%clk 0:02:41.7]} 9... Qe7 {[%clk
0:02:43.7]} 10. Bc4 {[%clk 0:02:38.9]} 10... Rd8 {[%clk 0:02:39.7]} 11. Qe2
{[%clk 0:02:35.4]} 11... Nbd7 {[%clk 0:02:37.9]} 12. O-O {[%clk 0:02:08.7]}
12... Ne5 {[%clk 0:02:33.1]} 13. Nd2 {[%clk 0:01:58.5]} 13... Bf5 {[%clk
0:02:13.7]} 14. Nb3 {[%clk 0:01:51.8]} 14... Bd6 {[%clk 0:02:10.2]} 15. Nb5
{[%clk 0:01:43.3]} 15... Bb8 {[%clk 0:01:55.8]} 16. N3d4 {[%clk 0:01:40.6]}
16... Bg6 {[%clk 0:01:53.9]} 17. Bd2 {[%clk 0:01:30.2]} 17... a6 {[%clk
0:01:52.3]} 18. Nc3 {[%clk 0:01:22.2]} 18... Qc7 {[%clk 0:01:44.5]} 19. Bb3
{[%clk 0:01:19.9]} 19... Nf3+ {[%clk 0:01:37.7]} 20. Nxf3 {[%clk 0:01:02.7]}
20... exf3 {[%clk 0:01:37.4]} 21. d6 {[%clk 0:00:58.7]} 21... Qxd6 {[%clk
0:01:35.4]} 0-1

[Event "Early-Titled-Tuesday-Blitz-August-29-2023"]
[Site "Chess.com"]
[Date "2023.08.29"]
[Round "2"]
[White "Ariadna_Atreides"]
[Black "Aswathchess"]
[Result "0-1"]
[WhiteElo "2238"]
[BlackElo "2483"]
[TimeControl "180+1"]
[EndTime "8:15:20 PDT"]
[Termination "Aswathchess won by resignation"]

1. d4 {[%clk 0:02:55.7]} 1... Nf6 {[%clk 0:02:58.6]} 2. Nf3 {[%clk 0:02:55.1]}
2... e6 {[%clk 0:02:56.2]} 3. e3 {[%clk 0:02:55.1]} 3... c5 {[%clk 0:02:55.8]}
4. Bd3 {[%clk 0:02:55.1]} 4... Nc6 {[%clk 0:02:55.1]} 5. O-O {[%clk 0:02:54.3]}
5... d5 {[%clk 0:02:53.9]} 6. b3 {[%clk 0:02:54.8]} 6... Bd6 {[%clk 0:02:52.5]}
7. Bb2 {[%clk 0:02:55.1]} 7... O-O {[%clk 0:02:52.7]} 8. Nbd2 {[%clk 0:02:54.9]}
8... Qc7 {[%clk 0:02:51.7]} 9. dxc5 {[%clk 0:02:40]} 9... Bxc5 {[%clk
0:02:52.4]} 10. c4 {[%clk 0:02:34.3]} 10... dxc4 {[%clk 0:02:46.4]} 11. Nxc4
{[%clk 0:02:32.2]} 11... Rd8 {[%clk 0:02:42.3]} 12. Qe2 {[%clk 0:02:29]} 12...
b6 {[%clk 0:02:35.9]} 13. Nfe5 {[%clk 0:02:22.9]} 13... Bb7 {[%clk 0:02:19.4]}
14. Rac1 {[%clk 0:02:20.5]} 14... b5 {[%clk 0:02:07.4]} 15. Nxc6 {[%clk
0:01:02.7]} 15... Qxc6 {[%clk 0:02:07.4]} 16. f4 {[%clk 0:00:52.9]} 16... bxc4
{[%clk 0:02:06.4]} 17. Bxf6 {[%clk 0:00:47.9]} 17... cxd3 {[%clk 0:01:59.3]} 18.
Qg4 {[%clk 0:00:47]} 18... Bxe3+ {[%clk 0:01:59.2]} 19. Kh1 {[%clk 0:00:46.2]}
19... Qxg2+ {[%clk 0:01:59.2]} 20. Qxg2 {[%clk 0:00:44.9]} 20... Bxg2+ {[%clk
0:02:00.1]} 21. Kxg2 {[%clk 0:00:44.2]} 21... gxf6 {[%clk 0:02:00.1]} 22. Rc7
{[%clk 0:00:41.9]} 22... Rac8 {[%clk 0:01:57.5]} 23. Rxa7 {[%clk 0:00:38.9]}
23... Bxa7 {[%clk 0:01:56.2]} 0-1

[Event "Early-Titled-Tuesday-Blitz-August-29-2023"]
[Site "Chess.com"]
[Date "2023.08.29"]
[Round "2"]
[White "RIPOL"]
[Black "KejJaj"]
[Result "0-1"]
[WhiteElo "2441"]
[BlackElo "2172"]
[TimeControl "180+1"]
[EndTime "8:15:26 PDT"]
[Termination "KejJaj won by checkmate"]

1. d4 {[%clk 0:03:00.9]} 1... f5 {[%clk 0:02:59.7]} 2. Nf3 {[%clk 0:02:59.8]}
2... Nf6 {[%clk 0:03:00.2]} 3. g3 {[%clk 0:02:59.7]} 3... e6 {[%clk 0:03:00.9]}
4. Bg2 {[%clk 0:02:59.4]} 4... d5 {[%clk 0:03:01.6]} 5. O-O {[%clk 0:02:57.8]}
5... Bd6 {[%clk 0:03:01.5]} 6. c4 {[%clk 0:02:57.4]} 6... c6 {[%clk 0:03:01.6]}
7. b3 {[%clk 0:02:57]} 7... Qe7 {[%clk 0:03:01.3]} 8. Ne5 {[%clk 0:02:56.4]}
8... O-O {[%clk 0:02:53.2]} 9. Nd3 {[%clk 0:02:50.7]} 9... b6 {[%clk 0:02:48.4]}
10. Bf4 {[%clk 0:02:49.9]} 10... Bxf4 {[%clk 0:02:47.1]} 11. gxf4 {[%clk
0:02:46.6]} 11... Ba6 {[%clk 0:02:42.5]} 12. Qc2 {[%clk 0:02:43.4]} 12... Rc8
{[%clk 0:02:37]} 13. Rc1 {[%clk 0:02:39.7]} 13... Nbd7 {[%clk 0:02:33.5]} 14.
Nd2 {[%clk 0:02:33.1]} 14... Ne4 {[%clk 0:02:32.6]} 15. Nf3 {[%clk 0:02:24.1]}
15... h6 {[%clk 0:02:30.1]} 16. Nfe5 {[%clk 0:02:18.9]} 16... Nxe5 {[%clk
0:02:23.4]} 17. Nxe5 {[%clk 0:02:18.1]} 17... g5 {[%clk 0:02:13.2]} 18. f3
{[%clk 0:02:09.9]} 18... Nf6 {[%clk 0:02:02.9]} 19. c5 {[%clk 0:02:05.8]} 19...
gxf4 {[%clk 0:01:50.6]} 20. Qd2 {[%clk 0:02:04.4]} 20... Nh5 {[%clk 0:01:49]}
21. cxb6 {[%clk 0:02:00.5]} 21... axb6 {[%clk 0:01:41.3]} 22. Rxc6 {[%clk
0:01:47.8]} 22... Rxc6 {[%clk 0:01:39]} 23. Nxc6 {[%clk 0:01:47.6]} 23... Qg7
{[%clk 0:01:36.1]} 24. Kh1 {[%clk 0:01:37.4]} 24... Kh7 {[%clk 0:01:35.3]} 25.
Rg1 {[%clk 0:01:30.4]} 25... Rg8 {[%clk 0:01:35.6]} 26. Qe1 {[%clk 0:01:29.4]}
26... Qg5 {[%clk 0:01:27.7]} 27. Ne5 {[%clk 0:01:18.2]} 27... Ng3+ {[%clk
0:01:22.1]} 28. hxg3 {[%clk 0:01:12.2]} 28... Qh5+ {[%clk 0:01:22.6]} 29. Bh3
{[%clk 0:01:12.4]} 29... Qxh3# {[%clk 0:01:22]} 0-1

[Event "Early-Titled-Tuesday-Blitz-August-29-2023"]
[Site "Chess.com"]
[Date "2023.08.29"]
[Round "2"]
[White "Fh2411"]
[Black "FairChess_on_YouTube"]
[Result "0-1"]
[WhiteElo "2661"]
[BlackElo "3055"]
[TimeControl "180+1"]
[EndTime "8:15:30 PDT"]
[Termination "FairChess_on_YouTube won by checkmate"]

1. d4 {[%clk 0:02:47.3]} 1... Nf6 {[%clk 0:02:57.6]} 2. c4 {[%clk 0:02:47.8]}
2... e6 {[%clk 0:02:56.6]} 3. Nc3 {[%clk 0:02:48.3]} 3... Bb4 {[%clk 0:02:55.9]}
4. Qc2 {[%clk 0:02:48.7]} 4... O-O {[%clk 0:02:54.4]} 5. a3 {[%clk 0:02:48.8]}
5... Bxc3+ {[%clk 0:02:54.4]} 6. Qxc3 {[%clk 0:02:49.7]} 6... b6 {[%clk
0:02:54.6]} 7. Bg5 {[%clk 0:02:49.8]} 7... Bb7 {[%clk 0:02:54.4]} 8. e3 {[%clk
0:02:50.2]} 8... d6 {[%clk 0:02:52.7]} 9. Ne2 {[%clk 0:02:45.3]} 9... Nbd7
{[%clk 0:02:52.2]} 10. Rd1 {[%clk 0:02:42.5]} 10... Rc8 {[%clk 0:02:50.7]} 11.
Qc2 {[%clk 0:02:42.2]} 11... c5 {[%clk 0:02:47.2]} 12. Nc3 {[%clk 0:02:41.7]}
12... h6 {[%clk 0:02:37.9]} 13. Bh4 {[%clk 0:02:39.1]} 13... cxd4 {[%clk
0:02:32.7]} 14. Rxd4 {[%clk 0:02:37.9]} 14... Ne5 {[%clk 0:02:23.4]} 15. Qd2
{[%clk 0:02:10.8]} 15... Qe7 {[%clk 0:02:09.2]} 16. f3 {[%clk 0:01:34.4]} 16...
Bxf3 {[%clk 0:02:02.3]} 17. Rxd6 {[%clk 0:01:28]} 17... Rfd8 {[%clk 0:01:51.3]}
18. Rxd8+ {[%clk 0:01:25.6]} 18... Rxd8 {[%clk 0:01:52.2]} 19. Qf2 {[%clk
0:01:25.8]} 19... Qd6 {[%clk 0:01:32.5]} 20. Bxf6 {[%clk 0:00:48]} 20... Qd1+
{[%clk 0:01:31.8]} 21. Nxd1 {[%clk 0:00:46.3]} 21... Rxd1# {[%clk 0:01:32.7]}
0-1

[Event "Early-Titled-Tuesday-Blitz-August-29-2023"]
[Site "Chess.com"]
[Date "2023.08.29"]
[Round "2"]
[White "OparinGrigoriy"]
[Black "Iskusnyh"]
[Result "1-0"]
[WhiteElo "2977"]
[BlackElo "2635"]
[TimeControl "180+1"]
[EndTime "8:15:34 PDT"]
[Termination "OparinGrigoriy won by resignation"]

1. c4 {[%clk 0:03:00.9]} 1... c5 {[%clk 0:02:57.3]} 2. Nc3 {[%clk 0:03:01.1]}
2... g6 {[%clk 0:02:57]} 3. g3 {[%clk 0:03:01.5]} 3... Bg7 {[%clk 0:02:56.7]} 4.
Bg2 {[%clk 0:03:02.2]} 4... Nc6 {[%clk 0:02:56.8]} 5. e3 {[%clk 0:03:02]} 5...
e5 {[%clk 0:02:56.3]} 6. a3 {[%clk 0:02:57.4]} 6... Nge7 {[%clk 0:02:55.8]} 7.
b4 {[%clk 0:02:57.9]} 7... d6 {[%clk 0:02:52.8]} 8. Nge2 {[%clk 0:02:53.6]} 8...
O-O {[%clk 0:02:52]} 9. O-O {[%clk 0:02:54.1]} 9... Rb8 {[%clk 0:02:42.3]} 10.
Rb1 {[%clk 0:02:52.8]} 10... Be6 {[%clk 0:02:24.4]} 11. d3 {[%clk 0:02:51.9]}
11... Qd7 {[%clk 0:02:19.8]} 12. Nd5 {[%clk 0:02:45]} 12... Bh3 {[%clk
0:02:15.8]} 13. b5 {[%clk 0:02:34.5]} 13... Bxg2 {[%clk 0:01:18.3]} 14. bxc6
{[%clk 0:02:34.8]} 14... Qh3 {[%clk 0:01:17.4]} 15. Nxe7+ {[%clk 0:02:32.7]}
15... Kh8 {[%clk 0:01:17.4]} 16. c7 {[%clk 0:02:30.4]} 16... Rbe8 {[%clk
0:01:03.5]} 17. c8=Q {[%clk 0:02:28.7]} 17... Rxc8 {[%clk 0:01:02.6]} 18. Nxc8
{[%clk 0:02:29.6]} 18... Rxc8 {[%clk 0:01:03]} 19. f3 {[%clk 0:02:27.6]} 19...
Bxf1 {[%clk 0:00:52.9]} 20. Qxf1 {[%clk 0:02:28.5]} 20... Qd7 {[%clk 0:00:53]}
21. Nc3 {[%clk 0:02:26.4]} 21... b6 {[%clk 0:00:49.2]} 22. Nd5 {[%clk
0:02:26.3]} 22... h5 {[%clk 0:00:48.9]} 23. e4 {[%clk 0:02:26.7]} 23... f5
{[%clk 0:00:45.2]} 24. Qe2 {[%clk 0:02:24.7]} 24... Rf8 {[%clk 0:00:45]} 25. Bg5
{[%clk 0:02:25.3]} 25... Kh7 {[%clk 0:00:42.1]} 26. Rf1 {[%clk 0:02:24.9]} 26...
f4 {[%clk 0:00:41.2]} 27. gxf4 {[%clk 0:02:24.7]} 27... exf4 {[%clk 0:00:41]}
28. Bxf4 {[%clk 0:02:25.3]} 28... b5 {[%clk 0:00:34.3]} 29. cxb5 {[%clk
0:02:26.2]} 29... Qxb5 {[%clk 0:00:33.8]} 30. Bxd6 {[%clk 0:02:26.5]} 30... Re8
{[%clk 0:00:31.8]} 31. e5 {[%clk 0:02:23.2]} 31... Qa6 {[%clk 0:00:24.4]} 32.
Qe4 {[%clk 0:02:22.4]} 1-0

[Event "Early-Titled-Tuesday-Blitz-August-29-2023"]
[Site "Chess.com"]
[Date "2023.08.29"]
[Round "2"]
[White "chess123456s"]
[Black "DenLaz"]
[Result "0-1"]
[WhiteElo "2659"]
[BlackElo "3049"]
[TimeControl "180+1"]
[EndTime "8:15:35 PDT"]
[Termination "DenLaz won by resignation"]

1. e4 {[%clk 0:03:00.8]} 1... c5 {[%clk 0:03:00]} 2. Nf3 {[%clk 0:03:00.6]} 2...
e6 {[%clk 0:03:00.7]} 3. g3 {[%clk 0:02:59.9]} 3... d5 {[%clk 0:02:59.7]} 4.
exd5 {[%clk 0:02:59.4]} 4... exd5 {[%clk 0:03:00.6]} 5. d4 {[%clk 0:02:59.5]}
5... cxd4 {[%clk 0:03:00.2]} 6. Nxd4 {[%clk 0:02:57.3]} 6... Nc6 {[%clk
0:02:59.7]} 7. Bg2 {[%clk 0:02:57.1]} 7... Bc5 {[%clk 0:02:59.8]} 8. Nb3 {[%clk
0:02:55]} 8... Qe7+ {[%clk 0:02:48]} 9. Qe2 {[%clk 0:02:50.5]} 9... Bb6 {[%clk
0:02:45]} 10. Kd1 {[%clk 0:02:51.2]} 10... Be6 {[%clk 0:02:34.7]} 11. Nc3 {[%clk
0:02:39.5]} 11... Nf6 {[%clk 0:02:34.3]} 12. Bg5 {[%clk 0:02:37.3]} 12... O-O
{[%clk 0:02:31.9]} 13. Re1 {[%clk 0:02:21.8]} 13... h6 {[%clk 0:02:28.3]} 14.
Bf4 {[%clk 0:02:19.6]} 14... Rfd8 {[%clk 0:02:24.3]} 15. Na4 {[%clk 0:02:10.6]}
15... Rac8 {[%clk 0:02:21.9]} 16. Nxb6 {[%clk 0:01:54.9]} 16... axb6 {[%clk
0:02:22.8]} 17. Qd2 {[%clk 0:01:47.2]} 17... d4 {[%clk 0:02:20.6]} 18. Bxc6
{[%clk 0:01:36.1]} 18... bxc6 {[%clk 0:02:17.9]} 19. Be5 {[%clk 0:01:35.6]}
19... c5 {[%clk 0:02:16.6]} 20. Qf4 {[%clk 0:01:29.5]} 20... Nd5 {[%clk
0:02:07]} 21. Qf3 {[%clk 0:01:22]} 21... Qd7 {[%clk 0:02:07]} 22. Kd2 {[%clk
0:01:15.2]} 22... Bg4 {[%clk 0:02:04.8]} 23. Qe4 {[%clk 0:01:13.7]} 23... Bf5
{[%clk 0:02:05]} 24. Qf3 {[%clk 0:01:11.2]} 24... Nb4 {[%clk 0:02:04.1]} 25.
Rec1 {[%clk 0:00:58.4]} 25... Re8 {[%clk 0:02:02.7]} 26. a3 {[%clk 0:00:40.2]}
26... Nxc2 {[%clk 0:02:00.3]} 27. Rxc2 {[%clk 0:00:39]} 27... Bxc2 {[%clk
0:01:59.7]} 0-1

[Event "Early-Titled-Tuesday-Blitz-August-29-2023"]
[Site "Chess.com"]
[Date "2023.08.29"]
[Round "2"]
[White "Veleamater"]
[Black "Real_taiatai"]
[Result "0-1"]
[WhiteElo "2327"]
[BlackElo "2520"]
[TimeControl "180+1"]
[EndTime "8:15:37 PDT"]
[Termination "Real_taiatai won by resignation"]

1. g3 {[%clk 0:03:00.9]} 1... Nf6 {[%clk 0:03:00.2]} 2. Bg2 {[%clk 0:03:01.4]}
2... d5 {[%clk 0:02:59.5]} 3. d3 {[%clk 0:03:01.9]} 3... Nc6 {[%clk 0:02:58.7]}
4. Nf3 {[%clk 0:03:02.3]} 4... e5 {[%clk 0:02:58.5]} 5. O-O {[%clk 0:03:02.9]}
5... h6 {[%clk 0:02:58.6]} 6. h3 {[%clk 0:03:03.4]} 6... Bc5 {[%clk 0:02:57.6]}
7. Nc3 {[%clk 0:03:03.8]} 7... O-O {[%clk 0:02:56]} 8. e4 {[%clk 0:03:03.5]}
8... Re8 {[%clk 0:02:52.9]} 9. g4 {[%clk 0:03:02.4]} 9... dxe4 {[%clk
0:02:48.7]} 10. dxe4 {[%clk 0:03:01.9]} 10... Nd4 {[%clk 0:02:49]} 11. Be3
{[%clk 0:03:01.2]} 11... Nxf3+ {[%clk 0:02:46.9]} 12. Qxf3 {[%clk 0:02:59.1]}
12... Bxe3 {[%clk 0:02:46.2]} 13. Qxe3 {[%clk 0:02:58.7]} 13... Qe7 {[%clk
0:02:46.1]} 14. a3 {[%clk 0:02:55]} 14... c6 {[%clk 0:02:46.3]} 15. Rfd1 {[%clk
0:02:53.6]} 15... Be6 {[%clk 0:02:45.9]} 16. Rd2 {[%clk 0:02:53.5]} 16... Nd7
{[%clk 0:02:45.6]} 17. Rad1 {[%clk 0:02:52.8]} 17... b6 {[%clk 0:02:44.5]} 18.
f4 {[%clk 0:02:50.5]} 18... exf4 {[%clk 0:02:44.4]} 19. Qxf4 {[%clk 0:02:50.8]}
19... Qc5+ {[%clk 0:02:43.9]} 20. Kh2 {[%clk 0:02:44.9]} 20... Qe5 {[%clk
0:02:43.8]} 21. Kg3 {[%clk 0:02:42]} 21... g5 {[%clk 0:02:39.2]} 22. Qxe5 {[%clk
0:02:38.2]} 22... Nxe5 {[%clk 0:02:40.1]} 23. b3 {[%clk 0:02:36.6]} 23... Kf8
{[%clk 0:02:38.2]} 24. Kf2 {[%clk 0:02:34.9]} 24... Ke7 {[%clk 0:02:38.5]} 25.
Ke3 {[%clk 0:02:34.8]} 25... Rad8 {[%clk 0:02:37.6]} 26. Bf3 {[%clk 0:02:34.8]}
26... Rxd2 {[%clk 0:02:35.4]} 27. Rxd2 {[%clk 0:02:33.7]} 27... Rd8 {[%clk
0:02:36.1]} 28. Be2 {[%clk 0:02:33.7]} 28... Rxd2 {[%clk 0:02:31.3]} 29. Kxd2
{[%clk 0:02:33.9]} 29... Kd6 {[%clk 0:02:30.1]} 30. Ke3 {[%clk 0:02:34]} 30...
Ng6 {[%clk 0:02:29.9]} 31. Bf1 {[%clk 0:02:33.2]} 31... Ke5 {[%clk 0:02:29.3]}
32. Ne2 {[%clk 0:02:31.3]} 32... Nf4 {[%clk 0:02:28.5]} 33. Nd4 {[%clk 0:02:29]}
33... Bd7 {[%clk 0:02:23.2]} 34. b4 {[%clk 0:02:27.2]} 34... f6 {[%clk
0:02:18.6]} 35. c4 {[%clk 0:02:26.7]} 35... c5 {[%clk 0:02:15.4]} 36. Nb3 {[%clk
0:02:23.8]} 36... Kd6 {[%clk 0:02:13.6]} 37. bxc5+ {[%clk 0:02:17.3]} 37... bxc5
{[%clk 0:02:13.1]} 38. Nd2 {[%clk 0:02:09.9]} 38... Ng6 {[%clk 0:01:49.4]} 39.
Nb1 {[%clk 0:02:07.4]} 39... Ne5 {[%clk 0:01:40.6]} 40. Nc3 {[%clk 0:02:06.8]}
40... Be6 {[%clk 0:01:36.7]} 41. Nb5+ {[%clk 0:02:05.8]} 41... Kc6 {[%clk
0:01:34.3]} 42. Nxa7+ {[%clk 0:02:05.7]} 42... Kb6 {[%clk 0:01:35]} 43. Nb5
{[%clk 0:02:04.4]} 43... Bxc4 {[%clk 0:01:33]} 44. Nd6 {[%clk 0:01:44.3]} 44...
Bxf1 {[%clk 0:01:31.2]} 45. Ne8 {[%clk 0:01:43.4]} 45... Bxh3 {[%clk 0:01:30.2]}
46. Kf2 {[%clk 0:01:42.9]} 46... Bxg4 {[%clk 0:01:29]} 47. Nxf6 {[%clk
0:01:42.2]} 47... Be6 {[%clk 0:01:29.6]} 48. Kg3 {[%clk 0:01:38.8]} 48... c4
{[%clk 0:01:29.6]} 0-1

[Event "Early-Titled-Tuesday-Blitz-August-29-2023"]
[Site "Chess.com"]
[Date "2023.08.29"]
[Round "2"]
[White "ejam94"]
[Black "BahadirOzen"]
[Result "1/2-1/2"]
[WhiteElo "2557"]
[BlackElo "2816"]
[TimeControl "180+1"]
[EndTime "8:15:39 PDT"]
[Termination "Game drawn by agreement"]

1. e4 {[%clk 0:02:59.2]} 1... a6 {[%clk 0:03:00.1]} 2. d4 {[%clk 0:02:58.3]}
2... c6 {[%clk 0:03:00.5]} 3. Nf3 {[%clk 0:02:57.1]} 3... d5 {[%clk 0:03:01]} 4.
exd5 {[%clk 0:02:57.6]} 4... cxd5 {[%clk 0:03:01]} 5. Bd3 {[%clk 0:02:58.2]}
5... Bg4 {[%clk 0:02:59.6]} 6. O-O {[%clk 0:02:58.3]} 6... Nc6 {[%clk
0:02:59.5]} 7. c3 {[%clk 0:02:58]} 7... e6 {[%clk 0:02:59.6]} 8. h3 {[%clk
0:02:58.5]} 8... Bh5 {[%clk 0:02:59.6]} 9. Bf4 {[%clk 0:02:54.7]} 9... Qf6
{[%clk 0:02:48.4]} 10. Bg5 {[%clk 0:02:31]} 10... Qxg5 {[%clk 0:02:45.6]} 11.
Nxg5 {[%clk 0:02:30.9]} 11... Bxd1 {[%clk 0:02:46.5]} 12. Rxd1 {[%clk
0:02:31.1]} 12... Bd6 {[%clk 0:02:42.6]} 13. Nd2 {[%clk 0:02:28.2]} 13... Nf6
{[%clk 0:02:41]} 14. g3 {[%clk 0:02:24.6]} 14... h6 {[%clk 0:02:39.3]} 15. Ngf3
{[%clk 0:02:24.6]} 15... O-O {[%clk 0:02:29.7]} 16. Nb3 {[%clk 0:02:01.3]} 16...
Nd7 {[%clk 0:02:23.8]} 17. Kg2 {[%clk 0:02:01.2]} 17... Rfc8 {[%clk 0:02:21.5]}
18. a4 {[%clk 0:01:56.9]} 18... g6 {[%clk 0:02:19.2]} 19. Be2 {[%clk 0:01:53.5]}
19... Bc7 {[%clk 0:02:05]} 20. Ra2 {[%clk 0:01:52.5]} 20... Na5 {[%clk
0:02:04.9]} 21. Nxa5 {[%clk 0:01:50.5]} 21... Bxa5 {[%clk 0:02:05.8]} 22. Ne1
{[%clk 0:01:46.2]} 22... Bc7 {[%clk 0:02:05]} 23. Nd3 {[%clk 0:01:46.4]} 23...
a5 {[%clk 0:01:57.4]} 24. Ra3 {[%clk 0:01:41.7]} 24... Bd6 {[%clk 0:01:56.2]}
25. Rb3 {[%clk 0:01:40.9]} 25... Rc7 {[%clk 0:01:56.5]} 26. Rb5 {[%clk
0:01:38.3]} 26... Kf8 {[%clk 0:01:56.6]} 27. f4 {[%clk 0:01:30.5]} 27... Ke7
{[%clk 0:01:52]} 28. Ne5 {[%clk 0:01:29.7]} 28... h5 {[%clk 0:01:42.5]} 29. Nxd7
{[%clk 0:01:24.2]} 29... Kxd7 {[%clk 0:01:42.1]} 30. Kf3 {[%clk 0:01:22.3]}
30... Ke7 {[%clk 0:01:38.7]} 31. Bd3 {[%clk 0:01:22.2]} 31... Kf6 {[%clk
0:01:35.9]} 32. Rb6 {[%clk 0:01:16.4]} 32... Ke7 {[%clk 0:01:35.6]} 33. Re1
{[%clk 0:01:13.5]} 33... Ra7 {[%clk 0:01:31.8]} 1/2-1/2